bitfinex-derivatives/quotes_SOLF0:USTF0_20250329
["timestamp","ask_amount","ask_price","bid_price","bid_amount"]
[1743251285465,4.3287,125.68,125.64,39.143]
[1743251286166,0.05797392,125.67,125.65,0.05114672]
[1743251286761,0.05797392,125.67,125.66,7.9618]
[1743251289668,0.05797392,125.67,125.65,8.01324672]
[1743251289967,0.05797392,125.67,125.65,0.05114672]
[1743251290169,2.07407392,125.67,125.62,31.16]
[1743251290371,7.9625,125.65,125.62,31.16]
[1743251291371,7.9625,125.65,125.62,31.21679999]
[1743251291774,7.9631,125.64,125.62,31.21679999]
[1743251291973,2.75,125.66,125.62,31.21679999]
[1743251292175,0.05052489,125.64,125.62,31.21679999]
[1743251292470,0.05052489,125.64,125.62,0.05679999]
[1743251294671,0.05052489,125.64,125.62,8.02099999]
[1743251294974,0.05052489,125.64,125.62,0.05679999]
[1743251295871,0.05052489,125.64,125.62,8.02109999]
[1743251296371,0.05052489,125.64,125.62,0.05679999]
[1743251296673,8.01362489,125.64,125.62,0.05679999]
[1743251296968,0.05052489,125.64,125.62,0.05679999]
[1743251297161,9.24528275,125.64,125.62,0.05679999]
[1743251297368,9.24528275,125.64,125.61,31.16]
[1743251298475,7.964,125.63,125.61,31.21906536]
[1743251299372,0.05052489,125.64,125.61,31.21906536]
[1743251300778,0.05052489,125.64,125.62,7.9639]
[1743251302076,0.05052489,125.64,125.61,39.18376536]
[1743251302282,8.01382489,125.64,125.61,39.18376536]
[1743251304184,8.01382489,125.64,125.61,31.21906536]
[1743251304378,0.05052489,125.64,125.61,31.21906536]
[1743251305787,8.01362489,125.64,125.61,39.18396536]
[1743251306485,0.05052489,125.64,125.61,31.21906536]
[1743251306886,0.05052489,125.64,125.61,0.05906536]
[1743251307486,7.9643,125.62,125.61,0.05906536]
[1743251315989,7.9657,125.6,125.57,7.9672]
[1743251316186,30.86122449,125.64,125.57,31.14]
[1743251316490,24.4534,125.64,125.61,7.9645]
[1743251316693,24.4534,125.64,125.61,39.1045]
[1743251317091,24.51413958,125.64,125.61,39.1045]
[1743251317288,16.55073958,125.64,125.61,31.14]
[1743251317488,16.55073958,125.64,125.63,14.37122449]
[1743251317886,9.78557422,125.64,125.63,22.33492449]
[1743251318089,0.06073958,125.64,125.63,22.33492449]
[1743251318486,0.06073958,125.64,125.63,23.74479591]
[1743251319491,7.96,125.69,125.65,7.9623]
[1743251319688,7.96,125.69,125.66,31.14]
[1743251320685,7.9605,125.68,125.66,31.19638031]
[1743251321785,0.05939837,125.69,125.66,31.19638031]
[1743251322190,7.9609,125.68,125.66,31.19638031]
[1743251323489,0.05939837,125.69,125.66,31.19638031]
[1743251323997,7.9608,125.68,125.66,31.19638031]
[1743251328698,8.01979837,125.69,125.66,31.19638031]
[1743251329001,0.05939837,125.69,125.66,31.19638031]
[1743251329299,7.9609,125.68,125.66,31.19638031]
[1743251332394,8.01949837,125.69,125.66,31.19638031]
[1743251333703,7.9605,125.68,125.66,31.19638031]
[1743251335500,7.9611,125.67,125.66,0.05638031]
[1743251335707,9.1906101,125.67,125.58,1.41026814]
[1743251336006,7.9646,125.62,125.59,40.2906101]
[1743251336506,9.1906101,125.62,125.6,31.1]
[1743251336705,7.9654,125.61,125.6,31.1]
[1743251336907,17.1560101,125.61,125.6,31.1]
[1743251339304,7.9654,125.61,125.6,31.1]
[1743251339805,0.0545573,125.62,125.6,31.1]
[1743251340403,8.0194573,125.62,125.6,31.1]
[1743251341907,8.0194573,125.62,125.58,17.1571101]
[1743251342109,8.0194573,125.62,125.59,39.0662]
[1743251343809,8.0194573,125.62,125.59,31.1]
[1743251344310,7.965,125.61,125.59,31.1]
[1743251345510,0.0545573,125.62,125.59,48.2566101]
[1743251345711,0.0545573,125.62,125.59,40.2906101]
[1743251346310,8.0193573,125.62,125.59,40.2906101]
[1743251351713,8.0193573,125.62,125.59,31.1]
[1743251353016,8.0193573,125.62,125.59,39.066]
[1743251354009,8.0193573,125.62,125.59,31.1]
[1743251354218,7.9651,125.61,125.59,31.1]
[1743251354920,17.2097674,125.62,125.59,31.1]
[1743251355120,17.2097674,125.62,125.59,39.0662]
[1743251355320,8.0191573,125.62,125.59,39.0662]
[1743251356820,8.0191573,125.62,125.59,48.2568101]
[1743251357121,0.0545573,125.62,125.61,17.1555101]
[1743251359723,0.0545573,125.62,125.61,9.1906101]
[1743251361730,0.0545573,125.62,125.61,17.1555101]
[1743251362123,0.0545573,125.62,125.55,262.58]
[1743251362426,0.0545573,125.62,125.58,17.1570101]
[1743251362631,0.0545573,125.62,125.59,31.08]
[1743251363327,0.0545573,125.62,125.59,39.0461]
[1743251363628,0.0545573,125.62,125.59,31.08]
[1743251364929,8.0190573,125.62,125.59,31.08]
[1743251366129,0.0545573,125.62,125.59,39.0461]
[1743251366529,0.0545573,125.62,125.59,40.2706101]
[1743251367030,0.0545573,125.62,125.61,17.1555101]
[1743251368531,7.9614,125.67,125.63,7.9632]
[1743251368733,7.9614,125.67,125.64,31.08]
[1743251369031,7.9618,125.66,125.64,31.08]
[1743251369426,8.0133091,125.66,125.64,31.08]
[1743251369625,8.0133091,125.66,125.64,31.13583529]
[1743251374033,7.9624,125.65,125.64,31.13583529]
[1743251375332,17.2041192,125.66,125.64,31.13583529]
[1743251375532,9.2421192,125.66,125.64,0.05583529]
[1743251376231,7.9624,125.65,125.64,0.05583529]
[1743251376433,17.1530101,125.65,125.64,0.05583529]
[1743251376731,9.1906101,125.65,125.6,31.06]
[1743251377028,7.9641,125.63,125.6,31.06]
[1743251377734,8.01666976,125.63,125.6,31.06]
[1743251379136,7.9643,125.62,125.6,31.06]
[1743251379939,7.9649,125.61,125.6,31.06]
[1743251380940,7.9646,125.62,125.6,31.06]
[1743251382741,17.20707986,125.63,125.6,31.06]
[1743251383037,8.01646976,125.63,125.6,31.06]
[1743251383941,7.9647,125.62,125.6,31.06]
[1743251386840,19.92707986,125.63,125.6,31.06]
[1743251387044,10.73646976,125.63,125.6,31.06]
[1743251387544,7.9643,125.62,125.6,31.06]
[1743251389345,2.77256976,125.63,125.6,48.2158101]
[1743251391145,10.73626976,125.63,125.6,48.2158101]
[1743251391444,2.77256976,125.63,125.6,31.06]
[1743251391640,7.9647,125.62,125.6,31.06]
[1743251395643,10.73646976,125.63,125.6,31.06]
[1743251398050,7.9645,125.62,125.6,31.06]
[1743251398550,7.9649,125.61,125.6,31.06]
[1743251400248,7.9668,125.58,125.56,9.1906101]
[1743251400450,9.1906101,125.6,125.56,31.04]
[1743251400651,0.05195687,125.58,125.56,40.2306101]
[1743251401753,0.05195687,125.58,125.56,48.1984101]
[1743251402958,0.05195687,125.58,125.56,40.2306101]
[1743251404255,0.05195687,125.58,125.56,48.1987101]
[1743251405358,0.05195687,125.58,125.57,17.1581101]
[1743251406354,20.29,125.63,125.57,10.59960855]
[1743251406554,20.29,125.63,125.61,9.1906101]
[1743251406754,20.29,125.63,125.62,9.1906101]
[1743251407245,20.29,125.63,125.62,17.1549101]
[1743251409861,17.57,125.63,125.62,17.1549101]
[1743251412557,9.1906101,125.7,125.63,9.1906101]
[1743251412758,1.9681,125.71,125.64,31.02]
[1743251412964,11.1587101,125.71,125.67,9.1906101]
[1743251413163,11.1587101,125.71,125.66,9.1906101]
[1743251413164,7.9596,125.7,125.66,9.1906101]
[1743251413762,0.0574531,125.69,125.67,0.06031234]
[1743251414860,0.0574531,125.69,125.68,7.9605]
[1743251415061,0.0574531,125.69,125.67,9.25092244]
[1743251415760,0.0574531,125.69,125.67,17.21162244]
[1743251416766,0.0574531,125.69,125.67,9.25092244]
[1743251418260,0.0574531,125.69,125.67,17.21182244]
[1743251421460,0.0574531,125.69,125.67,0.06031234]
[1743251423261,0.0574531,125.69,125.68,40.1906101]
[1743251423762,0.0574531,125.69,125.68,48.1511101]
[1743251427467,12.68,125.73,125.71,7.9583]
[1743251427668,10.1308,125.75,125.72,9.1906101]
[1743251428567,2.1745,125.75,125.72,9.1906101]
[1743251428869,2.22518475,125.75,125.72,17.20683332]
[1743251429371,10.18128475,125.75,125.72,9.24893332]
[1743251429668,2.22518475,125.75,125.73,9.1906101]
[1743251429869,0.05068475,125.75,125.74,48.1273101]
[1743251435073,0.05068475,125.75,125.74,40.1706101]
[1743251435274,0.05068475,125.75,125.73,40.1506101]
[1743251435669,0.05068475,125.75,125.73,48.1079101]
[1743251436172,0.05068475,125.75,125.74,17.1473101]
[1743251437173,0.05068475,125.75,125.74,9.1906101]
[1743251437373,0.05068475,125.75,125.73,40.1506101]
[1743251437773,0.05068475,125.75,125.73,30.96]
[1743251438074,0.05068475,125.75,125.73,40.1506101]
[1743251438473,0.05068475,125.75,125.74,7.9567]
[1743251441280,0.05068475,125.75,125.73,48.1077101]
[1743251443985,0.05068475,125.75,125.73,17.1477101]
[1743251444184,0.05068475,125.75,125.74,30.94]
[1743251444985,0.05068475,125.75,125.74,38.8967]
[1743251450486,0.05068475,125.75,125.74,30.94]
[1743251450893,0.05068475,125.75,125.72,0.05832322]
[1743251451088,7.9581,125.72,125.68,7.9599]
[1743251451289,9.1906101,125.72,125.68,7.9599]
[1743251451586,7.9589,125.71,125.67,48.0713101]
[1743251452292,0.05382452,125.7,125.68,0.05165391]
[1743251452588,8.01312452,125.7,125.68,0.05165391]
[1743251452793,0.05382452,125.7,125.68,0.05165391]
[1743251453190,8.01322452,125.7,125.68,0.05165391]
[1743251453395,0.05382452,125.7,125.68,0.05165391]
[1743251454197,8.01342452,125.7,125.68,0.05165391]
[1743251454597,9.24443462,125.7,125.68,0.05165391]
[1743251454799,9.24443462,125.7,125.65,40.1106101]
[1743251455097,7.9603,125.69,125.65,48.0730101]
[1743251455597,7.9605,125.68,125.65,40.1106101]
[1743251455798,7.9605,125.68,125.65,40.17187385]
[1743251456001,9.24443462,125.7,125.65,40.17187385]
[1743251456200,7.9602,125.69,125.65,48.13397385]
[1743251456804,7.9602,125.69,125.66,7.9617]
[1743251457503,7.9602,125.69,125.65,48.13397385]
[1743251457702,7.9602,125.69,125.66,9.1906101]
[1743251458007,9.1906101,125.67,125.65,0.06126375]
[1743251458304,9.1906101,125.66,125.62,30.92]
[1743251459199,9.1906101,125.66,125.62,40.1106101]
[1743251459400,0.05904025,125.65,125.62,48.0745101]
[1743251459601,0.05904025,125.65,125.62,17.1545101]
[1743251460505,0.05904025,125.65,125.63,9.1906101]
[1743251460698,0.05904025,125.65,125.64,40.1106101]
[1743251460902,2.031,125.67,125.64,40.1106101]
[1743251461103,0.05571415,125.66,125.64,40.1106101]
[1743251461305,0.05571415,125.66,125.64,48.0736101]
[1743251461604,0.05571415,125.66,125.65,9.1906101]
[1743251461803,0.05571415,125.66,125.64,40.1106101]
[1743251462305,0.05571415,125.66,125.64,48.0734101]
[1743251464007,0.05571415,125.66,125.65,7.9624]
[1743251464197,0.05571415,125.66,125.65,17.1530101]
[1743251467907,0.05571415,125.66,125.64,40.1106101]
[1743251468113,0.05571415,125.66,125.64,30.92]
[1743251468514,0.05571415,125.66,125.64,40.1106101]
[1743251469016,0.05571415,125.66,125.64,48.0733101]
[1743251469208,0.05571415,125.66,125.64,40.1106101]
[1743251469413,9.24632425,125.66,125.63,30.92]
[1743251469616,9.1906101,125.65,125.63,30.92]
[1743251469906,7.9631,125.64,125.63,30.92]
[1743251470713,7.9631,125.64,125.61,48.0754101]
[1743251471717,7.9631,125.64,125.61,40.1106101]
[1743251472016,7.9631,125.64,125.61,9.1906101]
[1743251472415,7.9631,125.64,125.61,40.1106101]
[1743251472915,7.9631,125.64,125.61,30.92]
[1743251473917,7.9631,125.64,125.61,38.8849]
[1743251474219,7.9641,125.63,125.6,9.1906101]
[1743251474518,9.1906101,125.64,125.6,40.1106101]
[1743251474715,0.05459884,125.63,125.6,40.1106101]
[1743251475311,8.01859884,125.63,125.6,40.1106101]
[1743251475917,0.05459884,125.63,125.6,40.1106101]
[1743251476616,0.05459884,125.63,125.6,48.0758101]
[1743251476919,8.01829884,125.63,125.6,40.1106101]
[1743251477217,8.01829884,125.63,125.6,30.92]
[1743251477817,9.1906101,125.61,125.57,262.42]
[1743251478020,9.1906101,125.61,125.58,30.92]
[1743251478224,0.05307668,125.6,125.58,30.92]
[1743251478518,0.05307668,125.6,125.59,9.1906101]
[1743251478719,0.05307668,125.6,125.58,48.0771101]
[1743251478919,0.05307668,125.6,125.56,9.1906101]
[1743251479112,9.1906101,125.61,125.56,40.1106101]
[1743251479310,0.05439761,125.6,125.57,7.9671]
[1743251479515,0.05439761,125.6,125.58,9.1906101]
[1743251479716,0.05439761,125.6,125.59,38.8862]
[1743251480522,0.05439761,125.6,125.59,30.92]
[1743251481822,8.01999761,125.6,125.59,30.92]
[1743251482123,0.05439761,125.6,125.57,30.92]
[1743251482820,0.05439761,125.6,125.57,40.1106101]
[1743251483420,8.02039761,125.6,125.57,40.1106101]
[1743251483613,8.02039761,125.6,125.57,30.92]
[1743251484222,0.05439761,125.6,125.57,30.92]
[1743251485023,9.24500771,125.6,125.57,30.92]
[1743251485221,9.1906101,125.59,125.56,30.92]
[1743251485420,7.9671,125.58,125.56,30.92]
[1743251486323,7.9678,125.57,125.55,30.92]
[1743251486520,9.1906101,125.59,125.55,30.92]
[1743251486719,0.06072092,125.57,125.55,40.1106101]
[1743251487020,0.06072092,125.57,125.56,38.888]
[1743251488920,0.06072092,125.57,125.56,48.0786101]
[1743251489427,0.06072092,125.57,125.56,38.888]
[1743251493029,0.06072092,125.57,125.56,30.92]
[1743251494124,0.06072092,125.57,125.55,7.9687]
[1743251494326,0.06072092,125.57,125.55,38.8887]
[1743251495729,0.06072092,125.57,125.56,7.9681]
[1743251497430,0.06072092,125.57,125.56,17.1587101]
[1743251498427,0.06072092,125.57,125.56,7.9681]
[1743251498619,0.06072092,125.57,125.56,17.1587101]
[1743251499226,0.06072092,125.57,125.56,9.1906101]
[1743251500130,0.06072092,125.57,125.55,48.0790101]
[1743251500530,0.06072092,125.57,125.56,7.9681]
[1743251500731,0.06072092,125.57,125.55,40.1106101]
[1743251501326,0.06072092,125.57,125.55,30.92]
[1743251502131,0.06072092,125.57,125.55,30.9]
[1743251502830,0.06072092,125.57,125.56,9.1906101]
[1743251503519,0.06072092,125.57,125.56,17.1587101]
[1743251506028,0.06072092,125.57,125.55,48.0591101]
[1743251506228,0.06072092,125.57,125.55,30.9]
[1743251507431,0.06072092,125.57,125.55,40.0906101]
[1743251508333,0.06072092,125.57,125.54,9.1906101]
[1743251508533,0.06072092,125.57,125.53,40.0906101]
[1743251508730,0.06072092,125.57,125.55,7.9687]
[1743251509127,0.06072092,125.57,125.53,40.0906101]
[1743251510137,0.06072092,125.57,125.54,17.1596101]
[1743251510633,8.02822092,125.57,125.54,17.1596101]
[1743251511435,0.06072092,125.57,125.55,7.9685]
[1743251512131,0.06072092,125.57,125.48,55.55174906]
[1743251512331,9.1906101,125.55,125.5,9.1906101]
[1743251512534,0.05842879,125.54,125.5,9.1906101]
[1743251512731,0.05842879,125.54,125.5,17.1622101]
[1743251512938,0.05842879,125.54,125.5,9.1906101]
[1743251513837,8.02822879,125.54,125.5,9.1906101]
[1743251514037,0.05842879,125.54,125.5,9.1906101]
[1743251514836,7.9704,125.53,125.5,9.1906101]
[1743251515437,7.9704,125.53,125.49,40.0906101]
[1743251516136,7.9706,125.52,125.49,40.0906101]
[1743251517438,7.9706,125.52,125.49,30.9]
[1743251517638,9.1906101,125.52,125.49,30.9]
[1743251517839,9.24903889,125.54,125.49,40.0906101]
[1743251518038,7.9703,125.53,125.49,48.0631101]
[1743251518241,7.9703,125.53,125.49,40.0906101]
[1743251518540,9.24903889,125.54,125.49,40.0906101]
[1743251519242,7.9703,125.53,125.49,40.0906101]
[1743251519942,7.9707,125.52,125.49,40.0906101]
[1743251520236,9.1906101,125.52,125.48,30.88]
[1743251520439,7.9724,125.5,125.47,11.2293101]
[1743251520641,9.24408054,125.51,125.47,42.1093101]
[1743251520841,9.1906101,125.5,125.45,9.1906101]
[1743251521041,7.9732,125.48,125.45,48.0456101]
[1743251521336,7.9732,125.48,125.45,9.1906101]
[1743251521536,7.9732,125.48,125.45,40.0706101]
[1743251522841,17.22460916,125.49,125.45,40.0706101]
[1743251523641,9.1906101,125.48,125.44,40.0706101]
[1743251523839,9.1906101,125.48,125.45,1.41582941]
[1743251524639,9.1906101,125.48,125.45,9.39082941]
[1743251524838,9.1906101,125.48,125.45,7.975]
[1743251525140,9.25180916,125.49,125.45,9.1906101]
[1743251525340,0.06119906,125.49,125.46,9.1906101]
[1743251525542,0.06119906,125.49,125.47,9.1906101]
[1743251525737,0.06119906,125.49,125.47,48.0438101]
[1743251525943,0.06119906,125.49,125.48,9.1906101]
[1743251526143,0.06119906,125.49,125.47,30.88]
[1743251526339,0.06119906,125.49,125.47,38.8535]
[1743251527539,0.06119906,125.49,125.48,7.9732]
[1743251529046,0.06119906,125.49,125.48,17.1638101]
[1743251530047,0.06119906,125.49,125.48,7.9732]
[1743251531347,0.06119906,125.49,125.47,48.0441101]
[1743251532249,0.06119906,125.49,125.47,30.88]
[1743251532750,9.25180916,125.49,125.45,40.9869]
[1743251533247,17.22440916,125.49,125.45,40.9869]
[1743251534444,17.22440916,125.49,125.45,38.8548]
[1743251534649,9.1906101,125.48,125.45,38.8548]
[1743251535044,9.25180916,125.49,125.45,38.8548]
[1743251536550,17.22440916,125.49,125.45,38.8548]
[1743251536953,9.25180916,125.49,125.45,38.8548]
[1743251537848,17.22440916,125.49,125.45,38.8548]
[1743251538053,17.22440916,125.49,125.44,17.1662101]
[1743251538257,9.1906101,125.47,125.45,32.29621305]
[1743251538456,17.1647101,125.47,125.44,30.88]
[1743251538647,17.22338033,125.47,125.44,30.88]
[1743251539053,0.05867023,125.47,125.44,40.0706101]
[1743251539253,0.05867023,125.47,125.46,17.1650101]
[1743251542063,0.05867023,125.47,125.46,9.1906101]
[1743251542360,0.05867023,125.47,125.45,17.1654101]
[1743251542762,0.05867023,125.47,125.45,9.1906101]
[1743251542968,9.24928033,125.47,125.43,30.88]
[1743251543467,0.05867023,125.47,125.43,40.0706101]
[1743251543962,0.05867023,125.47,125.43,48.0466101]
[1743251544361,17.22358033,125.47,125.43,30.88]
[1743251544661,9.24928033,125.47,125.43,30.88]
[1743251545258,9.24928033,125.47,125.43,38.8563]
[1743251545259,17.22338033,125.47,125.43,38.8563]
[1743251545565,9.24928033,125.47,125.43,38.8563]
[1743251546167,17.22338033,125.47,125.43,30.88]
[1743251546561,9.24928033,125.47,125.43,30.88]
[1743251546761,7.9749,125.46,125.43,30.88]
[1743251546962,9.1906101,125.46,125.43,30.88]
[1743251548171,7.9753,125.45,125.43,30.88]
[1743251548376,9.1906101,125.46,125.43,30.88]
[1743251548872,17.1654101,125.46,125.43,30.88]
[1743251549474,7.9751,125.45,125.43,30.88]
[1743251551173,9.1906101,125.45,125.43,30.88]
[1743251551368,9.1906101,125.45,125.4,19.1376101]
[1743251551575,9.1906101,125.42,125.39,7.9786]
[1743251551776,9.1906101,125.43,125.4,1.42010969]
[1743251551979,9.1906101,125.45,125.4,9.1906101]
[1743251552274,0.05862186,125.43,125.41,48.0478101]
[1743251554278,0.05862186,125.43,125.41,38.8572]
[1743251555279,0.05862186,125.43,125.42,17.1676101]
[1743251555578,0.05862186,125.43,125.42,19.2975101]
[1743251555880,16.67,125.46,125.42,11.3205101]
[1743251556177,16.67,125.46,125.43,9.1906101]
[1743251556377,16.67,125.46,125.44,30.86]
[1743251556973,24.69535606,125.46,125.44,30.91858533]
[1743251557877,16.72055606,125.46,125.44,30.91858533]
[1743251559676,24.69505606,125.46,125.44,0.05858533]
[1743251559875,25.91116616,125.46,125.44,30.91858533]
[1743251560980,9.1906101,125.45,125.44,0.05858533]
[1743251562484,17.1657101,125.45,125.44,0.05858533]
[1743251562780,7.9751,125.45,125.44,0.05858533]
[1743251565182,17.1657101,125.45,125.44,0.05858533]
[1743251566379,7.9751,125.45,125.44,0.05858533]
[1743251569287,17.1657101,125.45,125.44,0.05858533]
[1743251570181,7.9751,125.45,125.44,0.05858533]
[1743251571085,24.69525606,125.46,125.44,0.05858533]
[1743251571688,7.9751,125.45,125.44,0.05858533]
[1743251571989,17.1657101,125.45,125.44,0.05858533]
[1743251573990,7.976,125.44,125.42,30.86]
[1743251576087,17.1666101,125.44,125.42,30.86]
[1743251576383,16.72055606,125.46,125.42,40.0506101]
[1743251576794,7.9751,125.45,125.42,40.0506101]
[1743251576982,16.72055606,125.46,125.42,40.0506101]
[1743251578093,16.72055606,125.46,125.42,30.86]
[1743251578484,25.91116616,125.46,125.42,30.86]
[1743251578993,7.9762,125.44,125.42,30.86]
[1743251579194,25.91116616,125.46,125.42,30.86]
[1743251580692,7.9764,125.43,125.42,30.86]
[1743251581386,7.9759,125.44,125.42,30.86]
[1743251581587,25.91116616,125.46,125.42,40.0506101]
[1743251581588,16.72055606,125.46,125.42,40.0506101]
[1743251582093,16.72055606,125.46,125.42,48.0273101]
[1743251582293,16.72055606,125.46,125.42,40.0506101]
[1743251582596,7.9755,125.45,125.42,40.0506101]
[1743251583495,24.69535606,125.46,125.42,48.0276101]
[1743251584295,7.9752,125.45,125.42,40.0506101]
[1743251585491,24.69535606,125.46,125.42,48.0275101]
[1743251585686,24.69535606,125.46,125.42,40.0506101]
[1743251585992,24.69535606,125.46,125.42,48.0273101]
[1743251587501,16.72055606,125.46,125.43,17.1667101]
[1743251587798,16.72055606,125.46,125.45,9.1906101]
[1743251587998,16.72055606,125.46,125.45,40.0306101]
[1743251588693,13.44015606,125.46,125.45,48.0057101]
[1743251588889,12.99631258,125.52,125.45,41.44796054]
[1743251589090,11.02581258,125.52,125.49,9.1906101]
[1743251589292,11.02581258,125.52,125.5,30.84]
[1743251590096,11.02581258,125.52,125.5,30.89639433]
[1743251590097,20.27499044,125.52,125.5,30.89639433]
[1743251590301,9.1906101,125.51,125.46,40.0106101]
[1743251590498,9.1906101,125.5,125.46,40.0106101]
[1743251590892,9.1906101,125.5,125.46,47.9850101]
[1743251591092,9.1906101,125.5,125.46,40.0106101]
[1743251591496,7.9729,125.49,125.46,40.0106101]
[1743251591699,8.02764937,125.49,125.46,40.0106101]
[1743251592302,8.02764937,125.49,125.45,17.1653101]
[1743251592502,9.24535947,125.49,125.44,40.0106101]
[1743251592696,9.1906101,125.49,125.44,40.0106101]
[1743251592901,0.05856225,125.48,125.44,40.0106101]
[1743251593603,0.05856225,125.48,125.45,9.1906101]
[1743251593800,0.05856225,125.48,125.45,17.1654101]
[1743251594004,0.05856225,125.48,125.45,9.1906101]
[1743251594204,0.05856225,125.48,125.44,40.0106101]
[1743251594702,0.05856225,125.48,125.45,9.1906101]
[1743251595100,8.03216225,125.48,125.44,40.0106101]
[1743251595704,7.9739,125.47,125.44,40.0106101]
[1743251596004,0.05856225,125.48,125.44,30.82]
[1743251596507,0.05856225,125.48,125.44,40.0106101]
[1743251598303,9.24917235,125.48,125.44,30.82]
[1743251598808,7.9742,125.47,125.44,30.82]
[1743251599008,9.24917235,125.48,125.44,30.82]
[1743251599309,0.05856225,125.48,125.44,40.0106101]
[1743251599605,8.03206225,125.48,125.44,47.9860101]
[1743251600104,0.05856225,125.48,125.45,17.1653101]
[1743251600408,0.05856225,125.48,125.45,9.1906101]
[1743251600610,0.05856225,125.48,125.44,40.0106101]
[1743251600806,8.03206225,125.48,125.44,47.9860101]
[1743251601508,8.03206225,125.48,125.45,7.9749]
[1743251601509,0.05856225,125.48,125.45,7.9749]
[1743251602010,0.05856225,125.48,125.44,47.9861101]
[1743251602309,8.03186225,125.48,125.44,47.9861101]
[1743251604209,8.03186225,125.48,125.44,40.0106101]
[1743251604508,7.9739,125.47,125.44,40.0106101]
[1743251604714,0.05856225,125.48,125.44,40.0106101]
[1743251605009,8.03206225,125.48,125.44,47.9860101]
[1743251606910,7.9741,125.47,125.44,40.0106101]
[1743251609809,9.24917235,125.48,125.44,30.82]
[1743251610114,9.1906101,125.45,125.42,30.8]
[1743251610409,7.9764,125.43,125.39,72.84288077]
[1743251610611,7.9764,125.43,125.4,32.21522092]
[1743251610813,0.055851,125.42,125.41,1.41522092]
[1743251611008,0.055851,125.42,125.41,30.8]
[1743251614611,0.055851,125.42,125.39,7.9785]
[1743251614910,0.055851,125.42,125.41,30.8]
[1743251615808,9.2464611,125.42,125.37,9.1906101]
[1743251616011,9.2464611,125.42,125.39,30.8]
[1743251616208,0.055851,125.42,125.39,30.8]
[1743251616408,8.033151,125.42,125.39,39.9906101]
[1743251616608,0.055851,125.42,125.41,9.1906101]
[1743251616812,11.3746101,125.49,125.41,9.1906101]
[1743251617009,19.3475101,125.49,125.44,17.1661101]
[1743251617210,11.3746101,125.49,125.45,30.8]
[1743251617506,19.3476101,125.49,125.45,30.8]
[1743251618016,0.05497171,125.48,125.46,0.05408317]
[1743251619317,8.02827171,125.48,125.46,0.05408317]
[1743251621016,0.05497171,125.48,125.46,0.05408317]
[1743251621619,8.02857171,125.48,125.46,0.05408317]
[1743251622522,0.05497171,125.48,125.46,0.05408317]
[1743251624723,0.05497171,125.48,125.46,8.02828317]
[1743251625120,0.05497171,125.48,125.46,0.05408317]
[1743251625913,0.05497171,125.48,125.47,9.1906101]
[1743251626223,0.05497171,125.48,125.47,17.1644101]
[1743251628224,0.05497171,125.48,125.47,18.57698391]
[1743251630026,0.05497171,125.48,125.47,17.1644101]
[1743251632022,0.05497171,125.48,125.46,9.24469327]
[1743251632223,0.05497171,125.48,125.46,0.05408317]
[1743251636030,8.02817171,125.48,125.46,0.05408317]
[1743251636329,0.05497171,125.48,125.46,0.05408317]
[1743251636831,8.02847171,125.48,125.46,0.05408317]
[1743251637031,9.24558181,125.48,125.46,0.05408317]
[1743251637929,7.9738,125.47,125.46,0.05408317]
[1743251638833,17.21908181,125.48,125.46,0.05408317]
[1743251641530,7.9738,125.47,125.46,0.05408317]
[1743251641837,9.1906101,125.46,125.41,39.9506101]
[1743251642035,9.1906101,125.46,125.42,1.41588154]
[1743251642337,7.9755,125.45,125.42,1.41588154]
[1743251642533,9.1906101,125.46,125.42,1.41588154]
[1743251642741,8.02527961,125.45,125.42,1.41588154]
[1743251643640,7.9758,125.44,125.42,1.41588154]
[1743251644231,7.9758,125.44,125.41,39.9506101]
[1743251644836,7.9758,125.44,125.39,17.1693101]
[1743251644837,7.9767,125.43,125.39,17.1693101]
[1743251645133,11.3462101,125.44,125.4,1.41622472]
[1743251645331,0.05826246,125.42,125.38,302.9106101]
[1743251645532,7.9776,125.41,125.39,1.41624695]
[1743251645736,9.1906101,125.41,125.39,1.41624695]
[1743251645931,9.1906101,125.41,125.37,30.76]
[1743251646130,9.1906101,125.41,125.37,7.9802]
[1743251646440,9.1906101,125.41,125.38,1.41647304]
[1743251646735,9.1906101,125.41,125.36,39.9506101]
[1743251646736,7.9786,125.4,125.36,47.9311101]
[1743251646937,9.1906101,125.41,125.37,1.41660302]
[1743251647137,0.05745269,125.39,125.37,1.41660302]
[1743251647339,8.03675269,125.39,125.37,1.41660302]
[1743251647539,8.03675269,125.39,125.36,30.76]